[Event "Grandmaster Triathlon - Blitz (GM2)"]
[Site "Biel, Switzerland"]
[Date "2026.07.19"]
[Round "5.1"]
[White "Vaishali, Rameshbabu"]
[Black "Xiao, Tong(Qd)"]
[Result "0-1"]
[TimeControl "3 + 2"]
[WhiteTitle "-"]
[BlackTitle "-"]
[WhiteFideId "5091756"]
[BlackFideId "8622388"]
[WhiteElo "2364"]
[BlackElo "2465"]

1. e4 {[%emt 00:00:04]} c6 {[%clk 00:03:01]} {[%emt 00:00:01]} 2. Nc3 {[%clk
00:03:02]} {[%emt 00:00:02]} d5 {[%clk 00:03:01]} {[%emt 00:00:01]} 3. Nf3
{[%clk 00:03:03]} {[%emt 00:00:01]} Bg4 {[%clk 00:03:00]} {[%emt 00:00:04]} 4.
h3 {[%clk 00:03:04]} {[%emt 00:00:01]} Bxf3 {[%clk 00:03:00]} {[%emt 00:00:01]}
5. Qxf3 {[%clk 00:03:05]} e6 {[%clk 00:03:01]} {[%emt 00:00:01]} 6. Be2 {[%clk
00:03:06]} {[%emt 00:00:01]} Bc5 {[%clk 00:03:00]} {[%emt 00:00:03]} 7. d3
{[%clk 00:02:59]} {[%emt 00:00:08]} Ne7 {[%clk 00:02:56]} {[%emt 00:00:06]} 8.
Qg3 {[%clk 00:02:42]} {[%emt 00:00:19]} Bd4 {[%clk 00:02:57]} {[%emt 00:00:02]}
9. Bd1 {[%clk 00:02:37]} {[%emt 00:00:07]} O-O {[%clk 00:02:47]} {[%emt
00:00:12]} 10. Ne2 {[%clk 00:02:37]} {[%emt 00:00:02]} Bb6 {[%clk 00:02:45]}
{[%emt 00:00:04]} 11. c3 {[%clk 00:02:37]} {[%emt 00:00:02]} Nd7 {[%clk
00:02:42]} {[%emt 00:00:05]} 12. Bc2 {[%clk 00:02:35]} {[%emt 00:00:04]} Bc7
{[%clk 00:02:37]} {[%emt 00:00:07]} 13. Qh4 {[%clk 00:02:09]} {[%emt 00:00:27]}
f5 {[%clk 00:02:23]} {[%emt 00:00:16]} 14. exf5 {[%clk 00:01:54]} {[%emt
00:00:17]} Nxf5 {[%clk 00:02:23]} {[%emt 00:00:02]} 15. Qxd8 {[%clk 00:01:46]}
{[%emt 00:00:10]} Raxd8 {[%clk 00:02:24]} {[%emt 00:00:01]} 16. d4 {[%clk
00:01:44]} {[%emt 00:00:04]} e5 {[%clk 00:02:21]} {[%emt 00:00:05]} 17. dxe5
{[%clk 00:01:43]} {[%emt 00:00:02]} Nxe5 {[%clk 00:02:21]} {[%emt 00:00:03]} 18.
O-O {[%clk 00:01:42]} {[%emt 00:00:04]} Rde8 {[%clk 00:02:21]} {[%emt
00:00:02]} 19. Nf4 {[%clk 00:00:51]} {[%emt 00:00:52]} Nh4 {[%clk 00:02:02]}
{[%emt 00:00:21]} 20. Nd3 {[%clk 00:00:47]} {[%emt 00:00:06]} Bb6 {[%clk
00:01:41]} {[%emt 00:00:23]} 21. Nxe5 {[%clk 00:00:10]} {[%emt 00:00:39]} Rxe5
{[%clk 00:01:42]} 22. Be3 {[%clk 00:00:06]} {[%emt 00:00:06]} Bxe3 {[%clk
00:01:33]} {[%emt 00:00:10]} 23. fxe3 {[%clk 00:00:07]} {[%emt 00:00:01]} Rxf1+
{[%clk 00:01:19]} {[%emt 00:00:16]} 24. Rxf1 {[%clk 00:00:09]} Rxe3 {[%clk
00:01:20]} {[%emt 00:00:01]} 25. Bd1 {[%clk 00:00:08]} {[%emt 00:00:03]} g6
{[%clk 00:01:06]} {[%emt 00:00:16]} 26. Kh2 {[%clk 00:00:08]} {[%emt 00:00:02]}
Nf5 {[%clk 00:01:02]} {[%emt 00:00:06]} 27. Bg4 {[%clk 00:00:09]} Nd6 {[%clk
00:00:51]} {[%emt 00:00:13]} 28. Rf6 {[%clk 00:00:08]} {[%emt 00:00:03]} Ne8
{[%clk 00:00:52]} 29. Rf2 {[%clk 00:00:06]} {[%emt 00:00:04]} Kg7 {[%clk
00:00:52]} {[%emt 00:00:02]} 30. a4 {[%clk 00:00:05]} {[%emt 00:00:04]} a5
{[%clk 00:00:52]} {[%emt 00:00:02]} 31. Bd7 {[%clk 00:00:04]} {[%emt 00:00:03]}
Nd6 {[%clk 00:00:53]} {[%emt 00:00:01]} 32. Bg4 {[%clk 00:00:04]} {[%emt
00:00:02]} h5 {[%clk 00:00:53]} {[%emt 00:00:01]} 33. Bf3 {[%clk 00:00:06]} Nc4
{[%clk 00:00:45]} {[%emt 00:00:10]} 34. Rc2 {[%clk 00:00:05]} {[%emt 00:00:03]}
Ne5 {[%clk 00:00:46]} {[%emt 00:00:02]} 35. Be2 {[%clk 00:00:06]} {[%emt
00:00:01]} Nd7 {[%clk 00:00:42]} {[%emt 00:00:06]} 36. b4 {[%clk 00:00:05]}
{[%emt 00:00:03]} Nb6 {[%clk 00:00:34]} {[%emt 00:00:10]} 37. bxa5 {[%clk
00:00:06]} {[%emt 00:00:02]} Nxa4 {[%clk 00:00:35]} 38. c4 {[%clk 00:00:07]}
{[%emt 00:00:01]} d4 {[%clk 00:00:35]} {[%emt 00:00:02]} 39. Rd2 {[%clk
00:00:07]} {[%emt 00:00:02]} Nc5 {[%clk 00:00:34]} {[%emt 00:00:03]} 40. Bf3
{[%clk 00:00:06]} {[%emt 00:00:03]} Nb3 {[%clk 00:00:34]} {[%emt 00:00:02]} 41.
Ra2 {[%clk 00:00:04]} {[%emt 00:00:04]} d3 {[%clk 00:00:20]} {[%emt 00:00:16]}
42. Kg1 {[%clk 00:00:05]} {[%emt 00:00:01]} d2 {[%clk 00:00:20]} {[%emt
00:00:02]} 43. Kf2 {[%clk 00:00:05]} {[%emt 00:00:02]} Rxf3+ {[%clk 00:00:21]}
{[%emt 00:00:02]} 0-1

[Event "Grandmaster Triathlon - Blitz (GM2)"]
[Site "Biel, Switzerland"]
[Date "2026.07.19"]
[Round "5.2"]
[White "Finek, Vaclav"]
[Black "Kosteniuk, Alexandra"]
[Result "1-0"]
[TimeControl "3 + 2"]
[WhiteTitle "-"]
[BlackTitle "-"]
[WhiteFideId "23718293"]
[BlackFideId "4128125"]
[WhiteElo "2504"]
[BlackElo "2392"]

1. d4 {[%clk 00:03:03]} {[%emt 00:01:09]} f5 {[%clk 00:03:04]} 2. g3 {[%clk
00:03:03]} {[%emt 00:00:02]} Nf6 {[%clk 00:03:05]} 3. Bg2 {[%clk 00:03:04]}
{[%emt 00:00:01]} g6 {[%clk 00:03:06]} 4. Nf3 {[%clk 00:03:05]} {[%emt
00:00:01]} Bg7 {[%clk 00:03:08]} 5. O-O {[%clk 00:03:06]} {[%emt 00:00:02]} O-O
{[%clk 00:03:09]} {[%emt 00:00:01]} 6. c4 {[%clk 00:03:07]} d6 {[%clk
00:03:11]} 7. Nc3 {[%clk 00:03:08]} a5 {[%clk 00:03:12]} 8. Re1 {[%clk
00:02:57]} {[%emt 00:00:13]} a4 {[%clk 00:03:12]} {[%emt 00:00:03]} 9. Nxa4
{[%clk 00:02:48]} {[%emt 00:00:11]} e5 {[%clk 00:03:12]} {[%emt 00:00:02]} 10.
dxe5 {[%clk 00:02:23]} {[%emt 00:00:27]} dxe5 {[%clk 00:03:13]} {[%emt
00:00:01]} 11. Nc3 {[%clk 00:02:08]} {[%emt 00:00:17]} e4 {[%clk 00:03:14]} 12.
Nd4 {[%clk 00:02:09]} Ng4 {[%clk 00:03:06]} {[%emt 00:00:10]} 13. Nb3 {[%clk
00:02:06]} {[%emt 00:00:05]} Ne5 {[%clk 00:02:05]} {[%emt 00:01:03]} 14. Qd5+
{[%clk 00:01:59]} {[%emt 00:00:09]} Qxd5 {[%clk 00:01:47]} {[%emt 00:00:20]} 15.
cxd5 {[%clk 00:01:43]} {[%emt 00:00:18]} Nc4 {[%clk 00:01:30]} {[%emt
00:00:20]} 16. Nd2 {[%clk 00:01:34]} {[%emt 00:00:10]} Nb6 {[%clk 00:01:29]}
{[%emt 00:00:03]} 17. Nf1 {[%clk 00:01:28]} {[%emt 00:00:08]} Na6 {[%clk
00:01:22]} {[%emt 00:00:09]} 18. Bf4 {[%clk 00:01:15]} {[%emt 00:00:15]} Bxc3
{[%clk 00:01:18]} {[%emt 00:00:07]} 19. bxc3 {[%clk 00:01:16]} {[%emt
00:00:01]} Nxd5 {[%clk 00:01:19]} 20. Bh6 {[%clk 00:01:17]} Re8 {[%clk
00:01:14]} {[%emt 00:00:07]} 21. c4 {[%clk 00:01:18]} {[%emt 00:00:01]} Ndb4
{[%clk 00:01:09]} {[%emt 00:00:06]} 22. Ne3 {[%clk 00:01:16]} {[%emt 00:00:04]}
Be6 {[%clk 00:01:11]} {[%emt 00:00:01]} 23. a3 {[%clk 00:01:16]} {[%emt
00:00:02]} Nc6 {[%clk 00:01:10]} {[%emt 00:00:03]} 24. Nd5 {[%clk 00:00:56]}
{[%emt 00:00:22]} Bxd5 {[%clk 00:01:06]} {[%emt 00:00:06]} 25. cxd5 {[%clk
00:00:57]} Ne7 {[%clk 00:01:07]} 26. Rab1 {[%clk 00:00:57]} {[%emt 00:00:02]}
Nxd5 {[%clk 00:01:01]} {[%emt 00:00:08]} 27. Rxb7 {[%clk 00:00:53]} {[%emt
00:00:06]} Reb8 {[%clk 00:00:40]} {[%emt 00:00:23]} 28. Reb1 {[%clk 00:00:35]}
{[%emt 00:00:19]} Rxb7 {[%clk 00:00:41]} 29. Rxb7 {[%clk 00:00:36]} Kf7 {[%clk
00:00:42]} {[%emt 00:00:01]} 30. f3 {[%clk 00:00:33]} {[%emt 00:00:05]} Nc3
{[%clk 00:00:28]} {[%emt 00:00:16]} 31. fxe4 {[%clk 00:00:33]} {[%emt
00:00:01]} Nxe4 {[%clk 00:00:26]} {[%emt 00:00:04]} 32. Bf4 {[%clk 00:00:33]}
{[%emt 00:00:03]} Ke6 {[%clk 00:00:19]} {[%emt 00:00:09]} 33. Rb5 {[%clk
00:00:28]} {[%emt 00:00:07]} Nac5 {[%clk 00:00:16]} {[%emt 00:00:05]} 34. Rxc5
{[%clk 00:00:28]} {[%emt 00:00:02]} 1-0

[Event "Grandmaster Triathlon - Blitz (GM2)"]
[Site "Biel, Switzerland"]
[Date "2026.07.19"]
[Round "5.3"]
[White "Yip, Carissa"]
[Black "Materia, Marco"]
[Result "0-1"]
[TimeControl "3 + 2"]
[WhiteTitle "-"]
[BlackTitle "-"]
[WhiteFideId "2090732"]
[BlackFideId "45150451"]
[WhiteElo "2369"]
[BlackElo "2509"]

1. e4 {[%clk 00:03:03]} c5 {[%clk 00:03:03]} {[%emt 00:00:01]} 2. Nf3 {[%clk
00:03:03]} {[%emt 00:00:02]} e6 {[%clk 00:03:04]} {[%emt 00:00:02]} 3. d3
{[%clk 00:03:02]} {[%emt 00:00:04]} Nc6 {[%clk 00:03:04]} {[%emt 00:00:01]} 4.
g3 {[%clk 00:03:03]} d5 {[%clk 00:03:03]} {[%emt 00:00:04]} 5. Nbd2 {[%clk
00:03:01]} {[%emt 00:00:03]} Nf6 {[%clk 00:03:03]} {[%emt 00:00:02]} 6. Bg2
{[%clk 00:03:02]} {[%emt 00:00:01]} Be7 {[%clk 00:03:04]} {[%emt 00:00:02]} 7.
O-O {[%clk 00:03:01]} {[%emt 00:00:02]} h6 {[%clk 00:03:05]} {[%emt 00:00:01]}
8. Re1 {[%clk 00:03:01]} {[%emt 00:00:02]} O-O {[%clk 00:03:04]} {[%emt
00:00:02]} 9. h4 {[%clk 00:02:53]} {[%emt 00:00:11]} b5 {[%clk 00:03:02]}
{[%emt 00:00:05]} 10. e5 {[%clk 00:02:51]} {[%emt 00:00:03]} Nh7 {[%clk
00:03:02]} {[%emt 00:00:02]} 11. Nf1 {[%clk 00:02:44]} {[%emt 00:00:09]} a5
{[%clk 00:03:03]} {[%emt 00:00:01]} 12. h5 {[%clk 00:02:39]} {[%emt 00:00:06]}
a4 {[%clk 00:03:04]} {[%emt 00:00:01]} 13. Bf4 {[%clk 00:02:38]} {[%emt
00:00:03]} a3 {[%clk 00:03:03]} {[%emt 00:00:03]} 14. b3 {[%clk 00:02:33]}
{[%emt 00:00:07]} Bb7 {[%clk 00:03:03]} {[%emt 00:00:02]} 15. Ne3 {[%clk
00:02:27]} {[%emt 00:00:07]} d4 {[%clk 00:03:03]} {[%emt 00:00:02]} 16. Ng4
{[%clk 00:02:23]} {[%emt 00:00:06]} Nb4 {[%clk 00:03:03]} {[%emt 00:00:01]} 17.
Qc1 {[%clk 00:02:17]} {[%emt 00:00:09]} Kh8 {[%clk 00:03:02]} {[%emt 00:00:04]}
18. Nd2 {[%clk 00:01:56]} {[%emt 00:00:22]} Bxg2 {[%clk 00:03:01]} {[%emt
00:00:02]} 19. Kxg2 {[%clk 00:01:57]} Rc8 {[%clk 00:02:51]} {[%emt 00:00:12]}
20. Kg1 {[%clk 00:01:50]} {[%emt 00:00:09]} Bg5 {[%clk 00:02:47]} {[%emt
00:00:06]} 21. Ne4 {[%clk 00:01:46]} {[%emt 00:00:06]} Bxf4 {[%emt 00:00:04]}
22. Qxf4 {[%clk 00:01:38]} {[%emt 00:00:08]} Nxc2 {[%clk 00:02:40]} {[%emt
00:00:10]} 23. Nd6 {[%clk 00:01:38]} {[%emt 00:00:02]} Rc7 {[%clk 00:02:36]}
{[%emt 00:00:06]} 24. Nxb5 {[%clk 00:01:37]} {[%emt 00:00:03]} Rd7 {[%clk
00:02:34]} {[%emt 00:00:04]} 25. Rac1 {[%clk 00:01:30]} {[%emt 00:00:09]} Nxe1
{[%clk 00:02:35]} {[%emt 00:00:01]} 26. Rxe1 {[%clk 00:01:31]} Ng5 {[%clk
00:02:33]} {[%emt 00:00:04]} 27. Kh2 {[%clk 00:01:24]} Qa8 {[%clk 00:02:34]}
{[%emt 00:00:11]} 28. Rc1 {[%clk 00:01:24]} Qd5 {[%clk 00:02:21]} {[%emt
00:00:16]} 29. Nd6 {[%clk 00:00:48]} f5 {[%clk 00:02:16]} {[%emt 00:00:44]} 30.
Nc4 {[%clk 00:00:27]} Nf3+ {[%clk 00:02:13]} {[%emt 00:00:28]} 0-1

[Event "Grandmaster Triathlon - Blitz (GM2)"]
[Site "Biel, Switzerland"]
[Date "2026.07.19"]
[Round "6.1"]
[White "Kosteniuk, Alexandra"]
[Black "Xiao, Tong(Qd)"]
[Result "1/2-1/2"]
[TimeControl "3 + 2"]
[WhiteTitle "-"]
[BlackTitle "-"]
[WhiteFideId "4128125"]
[BlackFideId "8622388"]
[WhiteElo "2392"]
[BlackElo "2465"]

1. e4 {[%clk 00:03:03]} c5 {[%clk 00:03:04]} 2. Nf3 {[%clk 00:03:04]} {[%emt
00:00:01]} e6 {[%clk 00:03:05]} 3. c3 {[%clk 00:03:05]} {[%emt 00:00:01]} d5
{[%clk 00:03:05]} {[%emt 00:00:01]} 4. exd5 {[%clk 00:03:05]} {[%emt 00:00:02]}
Qxd5 {[%clk 00:03:04]} {[%emt 00:00:03]} 5. d4 {[%clk 00:03:06]} {[%emt
00:00:02]} Nf6 {[%clk 00:03:05]} {[%emt 00:00:01]} 6. Be2 {[%clk 00:03:06]} a6
{[%clk 00:02:59]} {[%emt 00:00:08]} 7. O-O {[%clk 00:03:05]} {[%emt 00:00:02]}
Nbd7 {[%clk 00:02:59]} {[%emt 00:00:02]} 8. c4 {[%clk 00:03:01]} {[%emt
00:00:07]} Qc6 {[%clk 00:03:00]} {[%emt 00:00:01]} 9. Nc3 {[%clk 00:02:59]}
{[%emt 00:00:03]} cxd4 {[%clk 00:03:01]} {[%emt 00:00:01]} 10. Nxd4 {[%clk
00:03:00]} {[%emt 00:00:01]} Qc7 {[%clk 00:03:02]} 11. b3 {[%clk 00:02:58]}
{[%emt 00:00:04]} Bd6 {[%clk 00:02:41]} {[%emt 00:00:23]} 12. Kh1 {[%clk
00:02:54]} {[%emt 00:00:06]} Be7 {[%clk 00:02:35]} {[%emt 00:00:08]} 13. Bb2
{[%clk 00:02:53]} {[%emt 00:00:03]} O-O {[%clk 00:02:35]} {[%emt 00:00:01]} 14.
f4 {[%clk 00:02:40]} {[%emt 00:00:15]} b6 {[%clk 00:02:32]} {[%emt 00:00:05]}
15. Bf3 {[%clk 00:02:37]} {[%emt 00:00:05]} Bb7 {[%clk 00:02:34]} {[%emt
00:00:01]} 16. Qe2 {[%clk 00:02:37]} {[%emt 00:00:02]} Rac8 {[%clk 00:02:29]}
{[%emt 00:00:06]} 17. Rad1 {[%clk 00:02:35]} {[%emt 00:00:04]} Nc5 {[%clk
00:02:22]} {[%emt 00:00:10]} 18. Bxb7 {[%clk 00:02:27]} {[%emt 00:00:10]} Nxb7
{[%clk 00:02:12]} {[%emt 00:00:12]} 19. Rd3 {[%clk 00:02:27]} {[%emt 00:00:02]}
Rfd8 {[%clk 00:02:10]} {[%emt 00:00:04]} 20. f5 {[%clk 00:01:36]} {[%emt
00:00:54]} Nc5 {[%clk 00:02:00]} {[%emt 00:00:12]} 21. Rdd1 {[%clk 00:01:25]}
{[%emt 00:00:12]} e5 {[%clk 00:01:30]} {[%emt 00:00:32]} 22. Nc2 {[%clk
00:01:27]} {[%emt 00:00:01]} e4 {[%clk 00:01:09]} {[%emt 00:00:23]} 23. Nb4
{[%clk 00:01:18]} {[%emt 00:00:10]} Rxd1 {[%clk 00:00:05]} {[%emt 00:01:06]} 24.
Rxd1 {[%clk 00:01:17]} {[%emt 00:00:03]} Bf8 {[%clk 00:00:06]} {[%emt
00:00:01]} 25. Ncd5 {[%clk 00:01:16]} {[%emt 00:00:04]} Nxd5 {[%clk 00:00:07]}
{[%emt 00:00:02]} 26. Nxd5 {[%clk 00:01:16]} {[%emt 00:00:01]} Qc6 {[%clk
00:00:06]} {[%emt 00:00:03]} 27. Bd4 {[%clk 00:01:02]} {[%emt 00:00:16]} Re8
{[%clk 00:00:06]} {[%emt 00:00:02]} 28. Qg4 {[%clk 00:00:50]} {[%emt 00:00:15]}
Kh8 {[%clk 00:00:05]} {[%emt 00:00:03]} 29. Qh4 {[%clk 00:00:45]} {[%emt
00:00:06]} Nd3 {[%clk 00:00:04]} {[%emt 00:00:04]} 30. h3 {[%clk 00:00:30]}
{[%emt 00:00:17]} Bc5 {[%clk 00:00:04]} {[%emt 00:00:01]} 31. Nf6 {[%clk
00:00:25]} {[%emt 00:00:07]} h6 {[%clk 00:00:03]} {[%emt 00:00:03]} 32. Nxe8
{[%clk 00:00:15]} {[%emt 00:00:11]} Bxd4 {[%clk 00:00:05]} {[%emt 00:00:01]} 33.
Rxd3 {[%clk 00:00:16]} exd3 {[%clk 00:00:05]} {[%emt 00:00:02]} 34. Qxd4 {[%clk
00:00:17]} {[%emt 00:00:01]} Qxe8 {[%clk 00:00:06]} 35. Qxd3 {[%clk 00:00:19]}
Qe1+ {[%clk 00:00:07]} 36. Kh2 {[%clk 00:00:20]} Qe5+ {[%clk 00:00:08]} {[%emt
00:00:01]} 37. Kh1 {[%clk 00:00:19]} {[%emt 00:00:04]} Qe1+ {[%clk 00:00:07]}
{[%emt 00:00:03]} 38. Kh2 {[%clk 00:00:20]} Qe5+ {[%clk 00:00:08]} 39. Qg3
{[%clk 00:00:20]} {[%emt 00:00:02]} Qd4 {[%clk 00:00:07]} {[%emt 00:00:04]} 40.
Qc7 {[%clk 00:00:19]} {[%emt 00:00:03]} f6 {[%clk 00:00:06]} {[%emt 00:00:03]}
41. a4 {[%clk 00:00:18]} {[%emt 00:00:04]} a5 {[%clk 00:00:07]} 42. Qg3 {[%clk
00:00:16]} {[%emt 00:00:04]} Qc5 {[%clk 00:00:06]} {[%emt 00:00:03]} 43. Qf4
{[%clk 00:00:15]} {[%emt 00:00:03]} Qb4 {[%clk 00:00:06]} {[%emt 00:00:02]} 44.
Qe3 {[%clk 00:00:14]} {[%emt 00:00:02]} Qd6+ {[%clk 00:00:08]} {[%emt
00:00:01]} 45. Qg3 {[%clk 00:00:14]} {[%emt 00:00:02]} Qd4 {[%clk 00:00:07]}
{[%emt 00:00:02]} 46. Qf3 {[%clk 00:00:15]} {[%emt 00:00:02]} Qd6+ {[%clk
00:00:08]} {[%emt 00:00:01]} 47. Qg3 {[%clk 00:00:14]} {[%emt 00:00:03]} Qd4
{[%clk 00:00:10]} 48. Qf3 {[%clk 00:00:14]} {[%emt 00:00:02]} Qd6+ {[%clk
00:00:10]} 1/2-1/2

[Event "Grandmaster Triathlon - Blitz (GM2)"]
[Site "Biel, Switzerland"]
[Date "2026.07.19"]
[Round "6.2"]
[White "Materia, Marco"]
[Black "Vaishali, Rameshbabu"]
[Result "1-0"]
[TimeControl "3 + 2"]
[WhiteTitle "-"]
[BlackTitle "-"]
[WhiteFideId "45150451"]
[BlackFideId "5091756"]
[WhiteElo "2509"]
[BlackElo "2364"]

1. Nf3 {[%clk 00:03:03]} {[%emt 00:17:40]} d5 {[%clk 00:03:03]} {[%emt
00:00:01]} 2. b3 {[%clk 00:03:04]} Nf6 {[%clk 00:03:02]} {[%emt 00:00:04]} 3.
Bb2 {[%clk 00:03:05]} {[%emt 00:00:01]} e6 {[%clk 00:03:03]} {[%emt 00:00:01]}
4. g3 {[%clk 00:03:06]} {[%emt 00:00:02]} Bd6 {[%clk 00:02:57]} {[%emt
00:00:08]} 5. Bg2 {[%clk 00:03:06]} {[%emt 00:00:01]} O-O {[%clk 00:02:58]} 6.
O-O {[%clk 00:03:07]} {[%emt 00:00:02]} Nc6 {[%clk 00:02:59]} 7. d4 {[%clk
00:03:06]} {[%emt 00:00:03]} a5 {[%emt 00:00:05]} 8. c4 {[%clk 00:03:04]} Ne4
{[%clk 00:02:55]} {[%emt 00:00:05]} 9. Nc3 {[%clk 00:03:03]} {[%emt 00:00:03]}
f5 {[%clk 00:02:46]} {[%emt 00:00:10]} 10. cxd5 {[%clk 00:03:01]} {[%emt
00:00:04]} Nxc3 {[%clk 00:02:47]} {[%emt 00:00:01]} 11. Bxc3 {[%clk 00:03:02]}
{[%emt 00:00:01]} exd5 {[%clk 00:02:48]} 12. Ne5 {[%clk 00:02:53]} {[%emt
00:00:11]} Ne7 {[%clk 00:02:48]} {[%emt 00:00:02]} 13. Qd2 {[%clk 00:02:48]}
{[%emt 00:00:07]} c6 {[%clk 00:02:49]} {[%emt 00:00:02]} 14. b4 {[%clk
00:02:47]} {[%emt 00:00:03]} a4 {[%clk 00:02:44]} {[%emt 00:00:07]} 15. b5
{[%clk 00:02:17]} {[%emt 00:00:33]} f4 {[%clk 00:02:11]} {[%emt 00:00:35]} 16.
bxc6 {[%clk 00:02:15]} {[%emt 00:00:04]} bxc6 {[%clk 00:02:09]} {[%emt
00:00:04]} 17. Nxc6 {[%clk 00:02:11]} {[%emt 00:00:06]} Nxc6 {[%clk 00:02:07]}
{[%emt 00:00:04]} 18. Bxd5+ {[%clk 00:02:11]} {[%emt 00:00:02]} Kh8 {[%clk
00:02:08]} 19. Bxc6 {[%clk 00:02:12]} {[%emt 00:00:02]} Ra7 {[%clk 00:01:54]}
{[%emt 00:00:16]} 20. Bb4 {[%clk 00:01:48]} {[%emt 00:00:26]} Ba6 {[%clk
00:01:38]} {[%emt 00:00:18]} 21. Bxd6 {[%clk 00:01:35]} {[%emt 00:00:15]} Qxd6
{[%clk 00:01:39]} 22. Bf3 {[%clk 00:01:36]} {[%emt 00:00:01]} Re7 {[%clk
00:01:15]} {[%emt 00:00:26]} 23. Rac1 {[%clk 00:01:33]} {[%emt 00:00:05]} Qd7
{[%clk 00:01:08]} {[%emt 00:00:09]} 24. d5 {[%clk 00:01:25]} {[%emt 00:00:09]}
fxg3 {[%clk 00:00:58]} {[%emt 00:00:12]} 25. hxg3 {[%clk 00:01:26]} Qh3 {[%clk
00:00:59]} {[%emt 00:00:02]} 26. Qb4 {[%clk 00:01:12]} {[%emt 00:00:16]} Ref7
{[%clk 00:00:37]} {[%emt 00:00:24]} 27. Bg2 {[%clk 00:01:01]} {[%emt 00:00:13]}
Qh5 {[%clk 00:00:33]} {[%emt 00:00:06]} 28. Bf3 {[%clk 00:00:49]} {[%emt
00:00:14]} Qh3 {[%clk 00:00:34]} {[%emt 00:00:01]} 29. Qg4 {[%clk 00:00:48]}
{[%emt 00:00:03]} Qh6 {[%clk 00:00:35]} {[%emt 00:00:01]} 30. Rc6 {[%clk
00:00:48]} {[%emt 00:00:02]} Rf6 {[%clk 00:00:34]} {[%emt 00:00:02]} 31. Rxf6
{[%clk 00:00:45]} {[%emt 00:00:05]} gxf6 {[%clk 00:00:32]} {[%emt 00:00:04]} 32.
Qxa4 {[%clk 00:00:44]} {[%emt 00:00:03]} Bc8 {[%clk 00:00:32]} {[%emt
00:00:02]} 33. Qf4 {[%clk 00:00:42]} {[%emt 00:00:04]} Qh3 {[%clk 00:00:27]}
{[%emt 00:00:08]} 34. Rc1 {[%clk 00:00:39]} {[%emt 00:00:05]} 1-0